bitfinex-derivatives/quotes_BTCF0:USTF0_20250609
["timestamp","ask_amount","ask_price","bid_price","bid_amount"]
[1749450869397,0.93386665,105550.0,105540.0,0.37584904]
[1749450869601,1.29466665,105550.0,105540.0,0.37584904]
[1749450880211,1.29466665,105550.0,105540.0,0.40734904]
[1749450881413,0.86422665,105550.0,105540.0,0.40734904]
[1749450881617,1.29454665,105550.0,105540.0,0.40734904]
[1749450881916,0.1897913,105550.0,105540.0,0.64241974]
[1749450882215,0.7192313,105550.0,105540.0,0.70451974]
[1749450882415,0.83636665,105550.0,105540.0,0.70451974]
[1749450882721,0.83676665,105550.0,105540.0,0.70451974]
[1749450883019,0.83676665,105550.0,105540.0,0.58698439]
[1749450883513,0.83676665,105550.0,105540.0,0.70451974]
[1749450886916,0.7192313,105550.0,105540.0,0.70451974]
[1749450887116,0.83676665,105550.0,105540.0,0.70451974]
[1749450893219,0.83676665,105550.0,105540.0,0.58698439]
[1749450893517,0.83676665,105550.0,105540.0,0.85201746]
[1749450894218,0.83676665,105550.0,105540.0,0.73448211]
[1749450894520,0.83676665,105550.0,105540.0,0.61694676]
[1749450894717,0.83676665,105550.0,105540.0,0.73448211]
[1749450897214,0.83676665,105550.0,105540.0,0.58698439]
[1749450897726,0.83676665,105550.0,105540.0,0.46944904]
[1749450898020,0.83676665,105550.0,105540.0,0.58698439]
[1749450900223,0.83676665,105550.0,105540.0,0.55628439]
[1749450900416,1.29146665,105550.0,105540.0,0.43874904]
[1749450901120,1.1739313,105550.0,105540.0,0.43874904]
[1749450901521,1.29146665,105550.0,105540.0,0.43874904]
[1749450902024,1.29146665,105550.0,105540.0,0.55628439]
[1749450905224,1.29146665,105550.0,105540.0,0.49338439]
[1749450906916,0.93066665,105550.0,105540.0,0.49338439]
[1749450907120,1.29146665,105550.0,105540.0,0.49338439]
[1749450908031,0.93066665,105550.0,105540.0,0.49338439]
[1749450908321,1.29146665,105550.0,105540.0,0.49338439]
[1749450912030,1.29146665,105550.0,105540.0,0.37584904]
[1749450912530,1.29146665,105550.0,105540.0,0.49338439]
[1749450913128,1.29146665,105550.0,105540.0,0.37584904]
[1749450915332,0.76202665,105550.0,105540.0,0.37584904]
[1749450915633,1.29142665,105550.0,105540.0,0.37584904]
[1749450924838,1.1738913,105550.0,105540.0,0.49338439]
[1749450925034,1.29142665,105550.0,105540.0,0.49338439]
[1749450925933,1.29142665,105550.0,105540.0,0.52568439]
[1749450926839,0.93062665,105550.0,105540.0,0.52568439]
[1749450927032,1.29142665,105550.0,105540.0,0.52568439]
[1749450928945,1.29142665,105550.0,105540.0,0.55618439]
[1749450934343,0.93062665,105550.0,105540.0,0.55618439]
[1749450934539,1.29142665,105550.0,105540.0,0.55618439]
[1749450934740,0.93062665,105550.0,105540.0,0.55618439]
[1749450934940,1.29142665,105550.0,105540.0,0.55618439]
[1749450938540,0.93062665,105550.0,105540.0,0.55618439]
[1749450938742,1.29142665,105550.0,105540.0,0.55618439]
[1749450941550,1.29142665,105550.0,105540.0,0.43864904]
[1749450949858,0.93062665,105550.0,105540.0,0.43864904]
[1749450950058,1.29142665,105550.0,105540.0,0.43864904]
[1749450950954,0.93062665,105550.0,105540.0,0.43864904]
[1749450951259,1.29142665,105550.0,105540.0,0.43864904]
[1749450953055,1.29142665,105550.0,105540.0,0.44270564]
[1749450957865,1.29142665,105550.0,105540.0,0.44270474]
[1749450959168,1.29142665,105550.0,105540.0,0.44270464]
[1749450959368,1.29142665,105550.0,105540.0,0.25329554]
[1749450963375,0.93062665,105550.0,105540.0,0.25329554]
[1749450963576,1.29142665,105550.0,105540.0,0.25329554]
[1749450964174,1.29142665,105550.0,105540.0,0.44270464]
[1749450964869,0.93062665,105550.0,105540.0,0.44270464]
[1749450965070,1.29142665,105550.0,105540.0,0.44270464]
[1749450968876,1.30890103,105550.0,105540.0,0.44270464]
[1749450969278,0.94810103,105550.0,105540.0,0.44270464]
[1749450969476,1.30890103,105550.0,105540.0,0.44270464]
[1749450971376,1.27826103,105550.0,105540.0,0.44270464]
[1749450971676,1.27826103,105550.0,105540.0,0.47440464]
[1749450978382,0.91746103,105550.0,105540.0,0.47440464]
[1749450978682,1.27826103,105550.0,105540.0,0.47440464]
[1749450981282,1.27826103,105550.0,105540.0,0.59193999]
[1749450981486,0.27056568,105550.0,105540.0,0.59193999]
[1749450981681,0.91738103,105550.0,105540.0,0.59193999]
[1749450983084,1.27818103,105550.0,105540.0,0.59193999]
[1749450988286,1.24608103,105550.0,105540.0,0.59193999]
[1749450991185,1.1110713,105550.0,105540.0,0.59193999]
[1749450991484,1.22860665,105550.0,105540.0,0.59193999]
[1749450992781,0.79840665,105550.0,105540.0,0.59193999]
[1749450992983,0.7190313,105550.0,105540.0,0.70947534]
[1749450993181,0.1897913,105550.0,105540.0,1.09967412]
[1749450993381,0.7189913,105550.0,105540.0,1.09967412]
[1749450993585,0.7189913,105550.0,105540.0,0.98213877]
[1749450993586,0.83612665,105550.0,105540.0,0.98213877]
[1749450993787,0.83652665,105550.0,105540.0,0.98213877]
[1749450994191,0.5296,105550.0,105540.0,1.07027296]
[1749450994384,0.7185912,105550.0,105540.0,1.39442043]
[1749450994885,0.7189912,105550.0,105540.0,1.39442043]
[1749450995682,0.7189912,105550.0,105540.0,1.39542043]
[1749450995881,0.7189912,105550.0,105540.0,1.39842043]
[1749450997590,0.7189912,105550.0,105540.0,1.69532043]
[1749450998189,0.7189912,105550.0,105540.0,1.70455375]
[1749451001193,0.7189912,105550.0,105540.0,1.69532043]
[1749451001997,0.7189912,105550.0,105540.0,1.69126383]
[1749451002294,0.7189912,105550.0,105540.0,1.70076001]
[1749451002994,0.7189912,105550.0,105540.0,1.70481661]
[1749451005804,0.5296,105550.0,105540.0,1.70481661]
[1749451006300,0.7189912,105550.0,105540.0,1.70481661]
[1749451006899,0.7189912,105550.0,105540.0,1.36024973]
[1749451007204,0.83652655,105550.0,105540.0,1.59532043]
[1749451008403,0.83782836,105550.0,105540.0,1.59532043]
[1749451009701,0.83782836,105550.0,105540.0,1.23452043]
[1749451009903,0.83782836,105550.0,105540.0,1.69532043]
[1749451010207,0.83782836,105550.0,105540.0,1.69126383]
[1749451011104,0.72029301,105550.0,105540.0,1.69532043]
[1749451011607,0.72029301,105550.0,105540.0,1.59532043]
[1749451015612,0.72029301,105550.0,105540.0,1.23452043]
[1749451015813,0.72029301,105550.0,105540.0,1.59532043]
[1749451018714,0.72029301,105550.0,105540.0,1.69532043]
[1749451019017,0.72029301,105550.0,105540.0,1.59532043]
[1749451021620,0.72029301,105550.0,105540.0,1.36024973]
[1749451021820,0.72029301,105550.0,105540.0,1.59532043]
[1749451023120,0.72029301,105550.0,105540.0,1.69532043]
[1749451024921,0.72029301,105550.0,105540.0,1.33452043]
[1749451025123,0.72029301,105550.0,105540.0,1.69532043]
[1749451028825,0.53090181,105550.0,105540.0,1.69532043]
[1749451029124,0.72029301,105550.0,105540.0,1.69532043]
[1749451030826,0.72029301,105550.0,105540.0,1.33452043]
[1749451031028,0.72029301,105550.0,105540.0,1.69532043]
[1749451035018,0.00170181,105550.0,105540.0,1.69532043]
[1749451035327,0.72013301,105550.0,105540.0,1.69532043]
[1749451035529,0.72013301,105550.0,105540.0,1.90271929]
[1749451035727,0.72013301,105550.0,105540.0,1.75522157]
[1749451036531,0.53074181,105550.0,105540.0,1.75522157]
[1749451037030,0.53074181,105550.0,105540.0,1.90277303]
[1749451037930,0.53074181,105550.0,105540.0,1.54197303]
[1749451038132,0.53074181,105550.0,105540.0,1.90277303]
[1749451038528,0.53074181,105550.0,105540.0,1.69537417]
[1749451039326,0.72013301,105550.0,105540.0,1.69537417]
[1749451039727,0.53074181,105550.0,105540.0,1.69537417]
[1749451044436,0.53074181,105550.0,105540.0,1.33457417]
[1749451044739,0.53074181,105550.0,105540.0,1.69537417]
[1749451046137,0.00170181,105550.0,105540.0,1.69537417]
[1749451046440,0.83982945,105570.0,105560.0,0.1893733]
[1749451046638,1.43062945,105570.0,105560.0,0.4249116]
[1749451046941,1.06982945,105570.0,105560.0,0.4249116]
[1749451047236,1.07022945,105570.0,105560.0,0.4249116]
[1749451049040,1.06982945,105570.0,105560.0,0.4249116]
[1749451049241,1.07022945,105570.0,105560.0,0.4249116]
[1749451049450,0.2816706,105570.0,105560.0,0.4249116]
[1749451049634,0.8106306,105570.0,105560.0,0.33535865]
[1749451050032,0.8102306,105570.0,105560.0,0.33535865]
[1749451050230,0.93720058,105570.0,105560.0,0.33535865]
[1749451050641,0.93720058,105570.0,105560.0,0.37324865]
[1749451050842,0.93760058,105570.0,105560.0,0.2557133]
[1749451051034,0.93760058,105570.0,105560.0,0.37324865]
[1749451051642,0.93760058,105570.0,105560.0,0.5217516]
[1749451053040,0.93760058,105570.0,105560.0,0.5531516]
[1749451055846,0.93750021,105570.0,105560.0,0.55305123]
[1749451057245,0.90740021,105570.0,105560.0,0.55305123]
[1749451057447,0.90740021,105570.0,105560.0,0.58435123]
[1749451061241,0.00983463,105570.0,105560.0,0.94458326]
[1749451061541,0.9175116,105580.0,105570.0,0.1893553]
[1749451061542,1.321522,105580.0,105570.0,0.1893553]
[1749451061847,1.2741838,105580.0,105570.0,0.51536952]
[1749451062748,1.2741838,105580.0,105570.0,0.51636952]
[1749451063148,0.7452638,105580.0,105570.0,0.51636952]
[1749451063351,1.2741838,105580.0,105570.0,0.51636952]
[1749451064349,1.39161878,105580.0,105570.0,0.51636952]
[1749451064551,1.2741838,105580.0,105570.0,0.51736952]
[1749451065353,1.226847,105580.0,105570.0,0.61736952]
[1749451065652,1.226847,105580.0,105570.0,0.91426952]
[1749451065853,1.226847,105580.0,105570.0,0.9238892]
[1749451066150,1.226847,105580.0,105570.0,0.91426952]
[1749451066452,1.1795122,105580.0,105570.0,0.91426952]
[1749451068755,1.1795122,105580.0,105570.0,0.79683454]
[1749451068954,1.29694718,105580.0,105570.0,0.91426952]
[1749451070155,1.32784718,105580.0,105570.0,0.91426952]
[1749451070552,0.79892718,105580.0,105570.0,0.91426952]
[1749451070757,1.32780718,105580.0,105570.0,0.91426952]
[1749451073558,1.32780718,105580.0,105570.0,1.30351952]
[1749451076661,1.2103722,105580.0,105570.0,1.30351952]
[1749451076956,1.32780718,105580.0,105570.0,1.30351952]
[1749451077551,1.32776718,105580.0,105570.0,1.30351952]
[1749451079069,1.32776718,105580.0,105570.0,1.34139952]
[1749451080869,0.89812718,105580.0,105570.0,1.34139952]
[1749451082470,0.89812718,105580.0,105570.0,1.34545612]
[1749451083372,0.70877498,105580.0,105570.0,1.34545612]
[1749451083571,0.89811288,105580.0,105570.0,1.34545612]
[1749451084266,0.70877498,105580.0,105570.0,1.34545612]
[1749451084570,0.89811288,105580.0,105570.0,1.34545612]
[1749451085070,0.36927288,105580.0,105570.0,1.44545612]
[1749451085272,0.89807288,105580.0,105570.0,1.44545612]
[1749451085472,0.89807288,105580.0,105570.0,1.44139952]
[1749451087178,0.36927288,105580.0,105570.0,1.44139952]
[1749451087477,0.89807288,105580.0,105570.0,1.44139952]
[1749451088178,0.89807288,105580.0,105570.0,1.58895098]
[1749451088581,0.89807288,105580.0,105570.0,1.59300758]
[1749451089283,0.89807288,105580.0,105570.0,1.59308332]
[1749451089581,0.89807288,105580.0,105570.0,1.58902672]
[1749451090180,0.89807288,105580.0,105570.0,1.47117174]
[1749451093681,0.0625,105580.0,105570.0,1.47117174]
[1749451093886,0.91592867,105590.0,105580.0,0.1893379]
[1749451094089,1.08392867,105590.0,105580.0,0.42473396]
[1749451094284,0.29569719,105590.0,105580.0,0.30677288]
[1749451094489,0.91023217,105590.0,105580.0,0.85003396]
[1749451094690,0.91023217,105590.0,105580.0,0.48923396]
[1749451096693,0.26399719,105590.0,105580.0,0.60666894]
[1749451096888,0.79279719,105590.0,105580.0,0.48923396]
[1749451097389,0.79279719,105590.0,105580.0,0.51768396]
[1749451097590,0.91023217,105590.0,105580.0,0.51768396]
[1749451099493,0.91023217,105590.0,105580.0,0.87848396]
[1749451099692,0.0651,105590.0,105580.0,0.54778396]
[1749451099886,0.52876,105590.0,105580.0,1.05560932]
[1749451100084,0.83551498,105590.0,105580.0,0.93817434]
[1749451100392,0.83591498,105590.0,105580.0,0.93817434]
[1749451102095,0.83591498,105590.0,105580.0,1.05560932]
[1749451102596,0.52916,105590.0,105580.0,1.15560932]
[1749451102991,0.0004,105590.0,105580.0,1.15560932]
[1749451103198,0.09932,105590.0,105580.0,1.35031974]
[1749451103388,0.52916,105590.0,105580.0,1.35031974]
[1749451103588,0.52876,105590.0,105580.0,1.35031974]
[1749451103789,0.0004,105590.0,105580.0,1.35031974]
[1749451104092,0.52916,105590.0,105580.0,1.35031974]
[1749451104287,0.52916,105590.0,105580.0,1.35131974]
[1749451104802,0.52916,105590.0,105580.0,1.35231974]
[1749451105093,0.52876,105590.0,105580.0,1.35231974]
[1749451105296,0.52916,105590.0,105580.0,1.35231974]
[1749451105496,0.52912,105590.0,105580.0,1.35231974]
[1749451107391,0.80961873,105600.0,105580.0,1.35231974]
[1749451107392,0.09888,105600.0,105590.0,0.047326]
[1749451107594,0.09888,105600.0,105590.0,1.27356996]
[1749451107595,0.52842873,105600.0,105590.0,1.27356996]
[1749451107892,0.52842873,105600.0,105590.0,1.15613498]
[1749451108196,0.52842873,105600.0,105590.0,1.2508454]
[1749451108582,0.52842873,105600.0,105590.0,1.2518454]
[1749451108997,0.52842873,105600.0,105590.0,1.2528454]
[1749451109500,0.52842873,105600.0,105590.0,1.22292883]
[1749451109998,0.52842873,105600.0,105590.0,1.10529394]
[1749451110400,0.52842873,105600.0,105590.0,1.22289254]
[1749451110599,0.52842873,105600.0,105590.0,1.10545756]
[1749451110800,0.52842873,105600.0,105590.0,1.22289254]
[1749451111695,0.52842873,105600.0,105590.0,1.10545756]
[1749451111897,0.52842873,105600.0,105590.0,1.22289254]
[1749451113098,0.52842873,105600.0,105590.0,1.51979254]
[1749451114003,0.0316,105610.0,105600.0,0.1892973]
[1749451114203,0.74901604,105620.0,105610.0,0.1892793]
[1749451114406,1.39509102,105620.0,105610.0,0.36548443]
[1749451114709,1.39509102,105620.0,105610.0,0.49796596]
[1749451114894,1.39509102,105620.0,105610.0,0.45389442]
[1749451115296,1.39509102,105620.0,105610.0,0.49796121]
[1749451115497,1.39509102,105620.0,105610.0,0.3657357]
[1749451115698,1.39509102,105620.0,105610.0,0.44103703]
[1749451123307,1.39509102,105620.0,105610.0,0.52919575]
[1749451124911,1.512526,105620.0,105610.0,0.52919575]
[1749451125107,1.512526,105620.0,105610.0,0.55763575]
[1749451125310,1.512446,105620.0,105610.0,0.55763575]
[1749451125511,1.39501102,105620.0,105610.0,0.55763575]
[1749451126502,1.512446,105620.0,105610.0,0.44020077]
[1749451126703,1.39501102,105620.0,105610.0,0.44020077]
[1749451130303,1.03421102,105620.0,105610.0,0.44020077]
[1749451130509,1.39501102,105620.0,105610.0,0.44020077]
[1749451131517,1.39501102,105620.0,105610.0,0.48212737]
[1749451132113,1.03421102,105620.0,105610.0,0.48212737]
[1749451132415,1.39501102,105620.0,105610.0,0.42335722]
[1749451132618,1.39501102,105620.0,105610.0,0.59965228]
[1749451132917,1.39501102,105620.0,105610.0,0.4822173]
[1749451133114,1.512446,105620.0,105610.0,0.4822173]
[1749451133420,1.512446,105620.0,105610.0,0.42335722]
[1749451133614,1.39501102,105620.0,105610.0,0.42335722]
[1749451134926,1.03421102,105620.0,105610.0,0.42335722]
[1749451135113,1.39501102,105620.0,105610.0,0.42335722]
[1749451135425,1.27757604,105620.0,105610.0,0.42335722]
[1749451135720,1.39501102,105620.0,105610.0,0.5407922]
[1749451136621,1.39501102,105620.0,105610.0,0.42335722]
[1749451137930,1.39501102,105620.0,105610.0,0.5407922]
[1749451140113,1.512446,105620.0,105610.0,0.42335722]
[1749451140318,1.39501102,105620.0,105610.0,0.42335722]
[1749451140520,1.39501102,105620.0,105610.0,0.42360849]
[1749451148630,1.39501102,105620.0,105610.0,0.54120709]
[1749451151229,1.39501102,105620.0,105610.0,0.42360849]
[1749451152433,1.39501102,105620.0,105610.0,0.54120709]
[1749451153636,1.512446,105620.0,105610.0,0.53715049]
[1749451155136,0.983886,105620.0,105610.0,0.53715049]
[1749451155434,1.39493102,105620.0,105610.0,0.65458547]
[1749451156035,1.39493102,105620.0,105610.0,0.53698687]
[1749451157638,1.39493102,105620.0,105610.0,0.41955189]
[1749451158133,1.39493102,105620.0,105610.0,0.45105189]
[1749451158723,1.39493102,105620.0,105610.0,0.45510849]
[1749451159030,1.512366,105620.0,105610.0,0.15902786]
[1749451159425,0.983886,105620.0,105610.0,0.15902786]
[1749451159631,1.62436883,105620.0,105610.0,0.21800422]
[1749451159828,1.8010138,105620.0,105610.0,0.21394762]
[1749451160034,1.68357882,105620.0,105610.0,0.21394762]
[1749451160235,1.68357882,105620.0,105610.0,0.17000855]
[1749451160834,1.8010138,105620.0,105610.0,0.17000855]
[1749451161333,1.68357882,105620.0,105610.0,0.17000855]
[1749451161535,1.8010138,105620.0,105610.0,0.17000855]
[1749451162039,1.88983674,105620.0,105610.0,0.11103219]
[1749451162430,2.13983674,105620.0,105610.0,0.11103219]
[1749451163142,1.88983674,105620.0,105610.0,0.11103219]
[1749451163438,1.88983674,105620.0,105610.0,0.06681254]
[1749451165240,1.8010138,105620.0,105610.0,0.06681254]
[1749451165640,1.68357882,105620.0,105610.0,0.06681254]
[1749451167533,1.15509882,105620.0,105610.0,0.06681254]
[1749451167742,1.56614384,105620.0,105610.0,0.06681254]
[1749451167940,1.68397882,105620.0,105610.0,0.06681254]
[1749451168638,1.58929882,105620.0,105610.0,0.06681254]
[1749451168839,1.68397882,105620.0,105610.0,0.06681254]
[1749451170538,1.58929882,105620.0,105610.0,0.06681254]
[1749451170744,1.68397882,105620.0,105610.0,0.06681254]
[1749451171541,1.56654384,105620.0,105610.0,0.06681254]
[1749451171843,1.68397882,105620.0,105610.0,0.06681254]
[1749451175147,1.68397882,105620.0,105610.0,0.11103219]
[1749451175648,1.58929882,105620.0,105610.0,0.11103219]
[1749451175846,1.58929882,105620.0,105610.0,0.06681254]
[1749451177748,1.58929882,105620.0,105610.0,0.09811254]
[1749451178242,1.55649882,105620.0,105610.0,0.09811254]
[1749451178437,1.55649882,105620.0,105610.0,0.17293219]
[1749451180040,0.91058384,105620.0,105610.0,0.17293219]
[1749451180246,1.55649882,105620.0,105610.0,0.17293219]
[1749451180448,1.55609882,105620.0,105610.0,0.16151254]
[1749451180650,1.43906384,105620.0,105610.0,0.16151254]
[1749451181144,1.43906384,105620.0,105610.0,0.06151254]
[1749451181349,1.58939882,105620.0,105610.0,0.06151254]
[1749451183650,1.58939882,105620.0,105610.0,0.10573219]
[1749451185150,1.95019882,105620.0,105610.0,0.10573219]
[1749451187663,1.13137887,105620.0,105610.0,0.35399265]
[1749451187870,1.67845385,105620.0,105610.0,0.38409265]
[1749451188060,1.14997385,105620.0,105610.0,0.339873]
[1749451188268,1.67845385,105620.0,105610.0,0.42803172]
[1749451188461,1.14957385,105620.0,105610.0,0.42803172]
[1749451188667,1.67805385,105620.0,105610.0,0.42803172]
[1749451188969,1.03213887,105620.0,105610.0,0.42803172]
[1749451189167,1.20021887,105620.0,105610.0,0.48649034]
[1749451189368,1.19981887,105620.0,105610.0,0.49054694]
[1749451189565,1.31725385,105620.0,105610.0,0.49054694]
[1749451189869,1.31765385,105620.0,105610.0,0.49054694]
[1749451190068,1.31725385,105620.0,105610.0,0.49054694]
[1749451190373,1.31765385,105620.0,105610.0,0.49054694]
[1749451190666,1.20021887,105620.0,105610.0,0.60814554]
[1749451190870,1.31765385,105620.0,105610.0,0.60814554]
[1749451191065,0.26362067,105620.0,105610.0,0.49054694]
[1749451191270,0.79210067,105620.0,105610.0,0.40238822]
[1749451191465,0.79170067,105620.0,105610.0,0.51998682]
[1749451191665,0.79210067,105620.0,105610.0,0.51998682]
[1749451192268,0.90953565,105620.0,105610.0,0.40238822]
[1749451192475,0.90953565,105620.0,105610.0,0.40255184]
[1749451192675,0.90953565,105620.0,105610.0,0.51998682]
[1749451195074,0.90953565,105620.0,105610.0,0.59684937]
[1749451196270,0.90953565,105620.0,105610.0,0.68509187]
[1749451196477,0.90953565,105620.0,105610.0,0.68103527]
[1749451197476,0.90953565,105620.0,105610.0,0.68509187]
[1749451197875,0.38105565,105620.0,105610.0,0.68509187]
[1749451198174,0.90949565,105620.0,105610.0,0.68509187]
[1749451199083,0.90949565,105620.0,105610.0,0.59684937]
[1749451199377,0.79206067,105620.0,105610.0,0.68506847]
[1749451200377,0.0004,105620.0,105610.0,1.26330345]
[1749451200579,0.7134022,105630.0,105620.0,0.1892662]
[1749451200778,1.2417622,105630.0,105620.0,0.93375001]
[1749451200984,1.35959718,105630.0,105620.0,0.81631503]
[1749451201581,1.35959718,105630.0,105620.0,0.78341503]
[1749451202078,1.36905857,105630.0,105620.0,0.78341503]
[1749451202881,1.36905857,105630.0,105620.0,0.81481503]
[1749451204576,1.36905857,105630.0,105620.0,0.69738005]
[1749451205082,1.40105857,105630.0,105620.0,0.69738005]
[1749451205676,1.43115857,105630.0,105620.0,0.69738005]
[1749451205884,1.43115857,105630.0,105620.0,0.60917174]
[1749451206788,1.46315857,105630.0,105620.0,0.60917174]
[1749451207582,1.46315857,105630.0,105620.0,0.69738005]
[1749451207783,1.46315857,105630.0,105620.0,0.66598005]
[1749451208585,1.46315857,105630.0,105620.0,0.78341503]
[1749451209083,1.46315857,105630.0,105620.0,0.57777174]
[1749451209279,0.93479857,105630.0,105620.0,0.66598005]
[1749451209485,1.46311857,105630.0,105620.0,0.66598005]
[1749451209685,1.46311857,105630.0,105620.0,0.57777174]
[1749451211396,1.46311857,105630.0,105620.0,0.66598005]
[1749451213389,1.82391857,105630.0,105620.0,0.44391385]
[1749451213591,1.82391857,105630.0,105620.0,0.63318005]
[1749451213894,1.82391857,105630.0,105620.0,0.54497174]
[1749451214287,1.82391857,105630.0,105620.0,0.63318005]
[1749451214490,1.82391857,105630.0,105620.0,0.44391385]
[1749451216188,1.82391857,105630.0,105620.0,0.38510831]
[1749451216591,1.82391857,105630.0,105620.0,0.14710687]
[1749451217193,1.82391857,105630.0,105620.0,0.08820831]
[1749451219186,1.82391857,105630.0,105620.0,0.20580691]
[1749451220692,1.82391857,105630.0,105620.0,0.08820831]
[1749451222395,1.82391857,105630.0,105620.0,0.20580691]
[1749451223700,1.82391857,105630.0,105620.0,0.39507311]
[1749451223894,1.82391857,105630.0,105620.0,0.20580691]
[1749451224094,1.82391857,105630.0,105620.0,0.39507311]
[1749451224295,1.82391857,105630.0,105620.0,0.20580691]
[1749451228300,1.82391857,105630.0,105620.0,0.1175986]
[1749451228502,1.84123084,105630.0,105620.0,0.1175986]
[1749451228996,1.72379586,105630.0,105620.0,0.1175986]
[1749451229205,1.84123084,105630.0,105620.0,0.1175986]
[1749451233006,1.72379586,105630.0,105620.0,0.1175986]
[1749451233200,1.84123084,105630.0,105620.0,0.1175986]
[1749451234506,1.84123084,105630.0,105620.0,0.3068648]
[1749451236301,1.48043084,105630.0,105620.0,0.3068648]
[1749451236506,1.84123084,105630.0,105620.0,0.3068648]
[1749451238801,1.84123084,105630.0,105620.0,0.27774326]
[1749451239900,1.84123084,105630.0,105620.0,0.1892662]
[1749451242609,1.84123084,105630.0,105620.0,0.3068648]
[1749451245414,1.41171084,105630.0,105620.0,0.3068648]
[1749451251410,1.05091084,105630.0,105620.0,0.3068648]
[1749451251616,1.41171084,105630.0,105620.0,0.3068648]
[1749451260522,1.41171084,105630.0,105620.0,0.3447348]
[1749451266922,1.41171084,105630.0,105620.0,0.3731648]
[1749451270425,1.29427586,105630.0,105620.0,0.3731648]
[1749451270727,1.41171084,105630.0,105620.0,0.3731648]
[1749451270932,1.41171084,105630.0,105620.0,0.4060648]
[1749451272027,1.29427586,105630.0,105620.0,0.4385648]
[1749451272230,1.41171084,105630.0,105620.0,0.4385648]
[1749451274528,0.78929084,105630.0,105620.0,0.4385648]
[1749451274726,1.31745084,105630.0,105620.0,0.4705648]
[1749451279444,1.34925084,105630.0,105620.0,0.4705648]
[1749451281227,1.38085084,105630.0,105620.0,0.4705648]
[1749451284131,1.41085084,105630.0,105620.0,0.4705648]
[1749451285344,0.88269084,105630.0,105620.0,0.4705648]
[1749451285645,1.41085084,105630.0,105620.0,0.4385648]
[1749451285941,1.41085084,105630.0,105620.0,0.4060648]
[1749451289736,1.41085084,105630.0,105620.0,0.1838986]
[1749451295146,1.41085084,105630.0,105620.0,0.3731648]
[1749451296445,1.41085084,105630.0,105620.0,0.1838986]
[1749451297851,1.41085084,105630.0,105620.0,0.15475904]
[1749451299347,1.16748582,105630.0,105620.0,0.15475904]
[1749451299548,1.52828582,105630.0,105620.0,0.15475904]
[1749451300048,1.41085084,105630.0,105620.0,0.15475904]
[1749451314663,1.52828582,105630.0,105620.0,0.15475904]
[1749451314960,1.52828582,105630.0,105620.0,0.21372042]
[1749451316767,1.58749581,105630.0,105620.0,0.25794181]
[1749451316967,1.67631875,105630.0,105620.0,0.16948277]
[1749451317362,1.58749581,105630.0,105620.0,0.11052139]
[1749451320571,1.70493079,105630.0,105620.0,0.07388699]
[1749451320765,1.79375373,105630.0,105620.0,0.0296656]
[1749451321071,1.67631875,105630.0,105620.0,0.02843]
[1749451321264,1.61710876,105630.0,105620.0,0.02843]
[1749451321769,1.67619037,105630.0,105620.0,0.02843]
[1749451324471,1.67619037,105630.0,105620.0,0.0324866]
[1749451325478,1.67619037,105630.0,105620.0,0.02843]
[1749451326362,1.14803037,105630.0,105620.0,0.02843]
[1749451326568,1.67611037,105630.0,105620.0,0.02843]
[1749451328577,1.67611037,105630.0,105620.0,0.0324866]
[1749451328974,1.14803037,105630.0,105620.0,0.0324866]
[1749451329282,1.67611037,105630.0,105620.0,0.0324866]
[1749451329572,1.67611037,105630.0,105620.0,0.02843]
[1749451329977,2.03691037,105630.0,105620.0,0.02843]
[1749451330373,1.31531037,105630.0,105620.0,0.02843]
[1749451330579,2.03691037,105630.0,105620.0,0.02843]
[1749451331577,1.94808743,105630.0,105620.0,0.02843]
[1749451332578,1.42000743,105630.0,105620.0,0.02843]
[1749451332778,1.94808743,105630.0,105620.0,0.02843]
[1749451334674,1.94808743,105630.0,105620.0,0.0324866]
[1749451335678,1.94808743,105630.0,105620.0,0.02843]
[1749451336681,1.94808743,105630.0,105620.0,0.0324866]
[1749451337483,1.22648743,105630.0,105620.0,0.0324866]
[1749451337676,1.94808743,105630.0,105620.0,0.0324866]
[1749451338481,2.03691037,105630.0,105620.0,0.0324866]
[1749451339682,1.31531037,105630.0,105620.0,0.0324866]
[1749451339883,2.03691037,105630.0,105620.0,0.0324866]
[1749451340483,1.31531037,105630.0,105620.0,0.0324866]
[1749451340785,2.03691037,105630.0,105620.0,0.0324866]
[1749451342778,1.31531037,105630.0,105620.0,0.0324866]
[1749451342978,2.03691037,105630.0,105620.0,0.04675808]
[1749451343380,2.03691037,105630.0,105620.0,0.0324866]
[1749451343587,2.03691037,105630.0,105620.0,0.04675728]
[1749451343783,1.27396041,105630.0,105620.0,0.04675728]
[1749451343979,2.03691037,105630.0,105620.0,0.0324866]
[1749451344586,2.03691037,105630.0,105620.0,0.04675728]
[1749451345287,2.03691037,105630.0,105620.0,0.04676898]
[1749451345480,1.97782876,105630.0,105620.0,0.04676898]
[1749451345983,2.0369414,105630.0,105620.0,0.0324866]
[1749451346182,1.97782876,105630.0,105620.0,0.0958866]
[1749451346387,1.97782876,105630.0,105620.0,0.11016999]
[1749451346985,1.97782876,105630.0,105620.0,0.0958866]
[1749451347383,1.97782876,105630.0,105620.0,0.11018938]
[1749451347687,1.97782876,105630.0,105620.0,0.0958866]
[1749451347884,1.97782876,105630.0,105620.0,0.11018936]
[1749451348788,1.7429588,105630.0,105620.0,0.11018936]
[1749451348986,1.97782876,105630.0,105620.0,0.11018936]
[1749451349177,1.97782876,105630.0,105620.0,0.11018937]
[1749451349383,1.97782876,105630.0,105620.0,0.15441076]
[1749451350183,1.96051649,105630.0,105620.0,0.15441076]
[1749451350587,1.96051649,105630.0,105620.0,0.1544102]
[1749451350788,1.96051649,105630.0,105620.0,0.14010799]
[1749451350988,1.96051649,105630.0,105620.0,0.15441015]
[1749451352186,1.96051649,105630.0,105620.0,0.14010799]
[1749451352587,1.96051649,105630.0,105620.0,0.15440883]
[1749451353688,1.96051649,105630.0,105620.0,0.14010799]
[1749451354982,1.96051649,105630.0,105620.0,0.15440511]
[1749451355182,1.96051649,105630.0,105620.0,0.12300511]
[1749451355686,1.96051649,105630.0,105620.0,0.12302852]
[1749451355882,1.96051649,105630.0,105620.0,0.10873148]
[1749451356078,1.96051649,105630.0,105620.0,0.12302852]
[1749451357082,1.96051649,105630.0,105620.0,0.12302851]
[1749451357279,1.96051649,105630.0,105620.0,0.12302971]
[1749451357488,1.96051649,105630.0,105620.0,0.10873148]
[1749451357687,1.96051649,105630.0,105620.0,0.10873141]
[1749451357882,1.96051649,105630.0,105620.0,0.12302964]
[1749451358990,1.96051649,105630.0,105620.0,0.10873141]
[1749451359888,1.96051649,105630.0,105620.0,0.12302971]
[1749451360089,1.96051649,105630.0,105620.0,0.10873141]
[1749451360287,1.96051649,105630.0,105620.0,0.12302966]
[1749451360694,1.96051649,105630.0,105620.0,0.12302672]
[1749451360989,1.96051649,105630.0,105620.0,0.12302669]
[1749451361192,1.96051649,105630.0,105620.0,0.12302665]
[1749451361486,1.96051649,105630.0,105620.0,0.12302615]
[1749451362393,1.96051649,105630.0,105620.0,0.12301858]
[1749451363291,1.96051649,105630.0,105620.0,0.12301859]
[1749451363891,1.23891649,105630.0,105620.0,0.12301859]
[1749451364099,1.96051649,105630.0,105620.0,0.10873141]